fUST/lending_fUST_20250730
["ID","MTS","AMOUNT","RATE_DAILY","PERIOD"]
[375980814,1753807856646,-566.85,0.00021249,2]
[375980816,1753807856656,-475.64,0.00021249,2]
[375980818,1753807856665,-801.11,0.00021249,2]
[375980820,1753807856674,-460.0,0.0002125,2]
[375980822,1753807856683,-756.37,0.0002125,2]
[375980824,1753807856693,-516.73,0.0002125,2]
[375980826,1753807856702,-585.51,0.0002125,2]
[375980828,1753807856712,-460.0,0.0002125,2]
[375980830,1753807856721,-595.87,0.0002125,2]
[375980832,1753807856730,-1867.35,0.0002125,2]
[375980834,1753807856739,-460.0,0.0002125,2]
[375980836,1753807856750,-151.0,0.00021251,2]
[375980838,1753807856759,-177.038864,0.00021251,2]
[375980840,1753807856768,-177.038864,0.00021251,2]
[375980841,1753807856778,-667.75,0.00021251,2]
[375980843,1753807856787,-595.43,0.00021251,2]
[375980845,1753807856796,-460.0,0.00021251,2]
[375980847,1753807856806,-460.0,0.00021251,2]
[375980849,1753807856815,-739.29,0.00021251,2]
[375980851,1753807856825,-620.28,0.00021251,2]
[375980853,1753807856834,-460.0,0.00021251,2]
[375980855,1753807856844,-684.72,0.00021251,2]
[375980857,1753807856854,-460.0,0.00021251,2]
[375980859,1753807856863,-928.03,0.00021251,2]
[375980861,1753807856872,-635.4,0.00021251,2]
[375980863,1753807856881,-460.0,0.00021251,2]
[375980865,1753807856890,-2645.16,0.00021251,2]
[375980867,1753807856900,-1559.34,0.00021251,2]
[375980869,1753807856909,-2633.74,0.00021252,2]
[375980871,1753807856918,-460.0,0.00021252,2]
[375980873,1753807856927,-2035.27,0.00021252,2]
[375980875,1753807856937,-696.22,0.00021252,2]
[375980877,1753807856945,-460.0,0.00021252,2]
[375980879,1753807856954,-460.0,0.00021252,2]
[375980880,1753807856964,-460.0,0.00021252,2]
[375980882,1753807856973,-1910.62,0.00021261,2]
[375980884,1753807856982,-460.0,0.00021262,2]
[375980886,1753807856991,-1479.1,0.00021262,2]
[375980888,1753807857002,-1785.12,0.00021263,2]
[375980890,1753807857012,-2987.64,0.00021263,2]
[375980892,1753807857021,-2558.99,0.00021263,2]
[375980894,1753807857030,-585.67,0.00021263,2]
[375980896,1753807857041,-460.0,0.00021263,2]
[375980898,1753807857050,-2659.24,0.00021263,2]
[375980900,1753807857059,-3000.0,0.00021286,3]
[375980902,1753807857070,-151.0,0.00021297,2]
[375980904,1753807857079,-151.0,0.00021297,2]
[375980906,1753807857089,-151.0,0.00021299,2]
[375980908,1753807857098,-3000.0,0.000213,2]
[375980910,1753807857107,-151.0,0.000213,2]
[375980912,1753807857116,-312.16666667,0.000213,3]
[375980914,1753807857126,-214.91980558,0.000213,3]
[375980916,1753807857135,-460.5085953,0.000213,3]
[375980918,1753807857144,-160.0,0.000213,3]
[375980920,1753807857153,-600.0,0.00021303,2]
[375980922,1753807857163,-5000.0,0.00021304,2]
[375980924,1753807857172,-225.870196,0.00021305,3]
[375980925,1753807857181,-3000.0,0.0002131,2]
[375980927,1753807857190,-7000.0,0.00021312,3]
[375980929,1753807857199,-151.0,0.00021312,2]
[375980931,1753807857209,-151.0,0.00021312,2]
[375980933,1753807857218,-151.0,0.0002132,2]
[375980935,1753807857228,-3000.0,0.0002132,2]
[375980937,1753807857237,-3000.0,0.0002133,2]
[375980939,1753807857246,-3000.0,0.0002134,2]
[375980941,1753807857255,-3000.0,0.0002135,2]
[375980943,1753807857264,-5471.913572,0.0002136,2]
[375980945,1753807857274,-2231.69749388,0.00021383,5]
[375980947,1753807857283,-2245.5,0.00021384,4]
[375980949,1753807857293,-479.0,0.00021389,2]
[375980951,1753807857306,-6000.0,0.00021389,3]
[375980953,1753807857315,-800.0,0.00021401,2]
[375980955,1753807857324,-4000.0,0.00021411,3]
[375980957,1753807857333,-190.029278,0.0002142,2]
[375980959,1753807857344,-190.029278,0.0002142,2]
[375980961,1753807857353,-151.0,0.0002142,2]
[375980963,1753807857362,-151.0,0.00021443,2]
[375980965,1753807857372,-225.870196,0.00021463,2]
[375980967,1753807857381,-225.870196,0.000215,3]
[375980969,1753807857391,-2231.69749388,0.00021521,5]
[375980970,1753807857400,-460.0,0.00021523,2]
[375980972,1753807857410,-460.0,0.00021523,2]
[375980974,1753807857419,-491.69,0.00021523,2]
[375980976,1753807857428,-811.66,0.00021523,2]
[375980978,1753807857437,-3307.02,0.00021523,2]
[375980980,1753807857447,-460.0,0.00021523,2]
[375980982,1753807857456,-548.32,0.00021523,2]
[375980984,1753807857466,-544.18,0.00021523,2]
[375980986,1753807857475,-579.34,0.00021523,2]
[375980988,1753807857484,-507.41,0.00021523,2]
[375980990,1753807857494,-1150.02,0.00021523,2]
[375980992,1753807857504,-191.4466946,0.00021523,2]
[375980994,1753807857514,-2693.06,0.00021523,2]
[375980996,1753807857523,-473.88,0.00021523,2]
[375980998,1753807857532,-1832.82,0.00021523,2]
[375981000,1753807857542,-460.0,0.00021523,2]
[375981002,1753807857551,-608.37,0.00021523,2]
[375981004,1753807857561,-5209.05,0.00021523,2]
[375981006,1753807857570,-460.0,0.00021523,2]
[375981008,1753807857579,-460.0,0.00021523,2]
[375981010,1753807857589,-460.0,0.00021523,2]
[375981012,1753807857599,-2060.05,0.00021523,2]
[375981013,1753807857608,-566.85,0.00021523,2]
[375981015,1753807857617,-475.64,0.00021523,2]
[375981017,1753807857627,-801.11,0.00021523,2]
[375981019,1753807857636,-460.0,0.00021524,2]
[375981021,1753807857646,-756.37,0.00021524,2]
[375981023,1753807857655,-516.73,0.00021524,2]
[375981025,1753807857664,-585.51,0.00021524,2]
[375981027,1753807857674,-460.0,0.00021524,2]
[375981029,1753807857684,-595.87,0.00021524,2]
[375981031,1753807857693,-1867.35,0.00021524,2]
[375981033,1753807857702,-460.0,0.00021524,2]
[375981035,1753807857711,-667.75,0.00021525,2]
[375981037,1753807857721,-595.43,0.00021525,2]
[375981039,1753807857730,-460.0,0.00021525,2]
[375981041,1753807857739,-460.0,0.00021525,2]
[375981043,1753807857749,-739.29,0.00021525,2]
[375981044,1753807857758,-620.28,0.00021525,2]
[375981054,1753807857886,-460.0,0.00021525,2]
[375981055,1753807857896,-684.72,0.00021525,2]
[375981056,1753807857906,-460.0,0.00021525,2]
[375981057,1753807857915,-928.03,0.00021525,2]
[375981058,1753807857925,-635.4,0.00021525,2]
[375981059,1753807857934,-460.0,0.00021525,2]
[375981060,1753807857943,-2645.16,0.00021525,2]
[375981061,1753807857953,-1559.34,0.00021525,2]
[375981062,1753807857962,-600.0,0.00021525,2]
[375981063,1753807857972,-2633.74,0.00021526,2]
[375981064,1753807857981,-460.0,0.00021526,2]
[375981065,1753807857991,-2035.27,0.00021526,2]
[375981066,1753807858001,-696.22,0.00021526,2]
[375981067,1753807858011,-460.0,0.00021526,2]
[375981068,1753807858021,-460.0,0.00021526,2]
[375981069,1753807858030,-460.0,0.00021526,2]
[375981070,1753807858039,-500.0,0.00021528,2]
[375981072,1753807858049,-1000.0,0.00021528,2]
[375981074,1753807858058,-1000.0,0.00021528,2]
[375981076,1753807858067,-1910.62,0.00021535,2]
[375981077,1753807858076,-460.0,0.00021536,2]
[375981079,1753807858086,-1479.1,0.00021536,2]
[375981082,1753807858095,-1785.12,0.00021537,2]
[375981084,1753807858105,-2987.64,0.00021537,2]
[375981086,1753807858115,-2558.99,0.00021537,2]
[375981088,1753807858124,-585.67,0.00021537,2]
[375981089,1753807858133,-460.0,0.00021537,2]
[375981091,1753807858142,-2659.24,0.00021537,2]
[375981093,1753807858152,-1500.0,0.00021564,2]
[375981095,1753807858161,-151.0,0.00021569,2]
[375981097,1753807858171,-151.0,0.00021569,2]
[375981099,1753807858180,-274.014233,0.00021569,2]
[375981101,1753807858191,-274.014233,0.00021569,2]
[375981103,1753807858200,-151.0,0.00021569,2]
[375981105,1753807858210,-460.0,0.0002157,2]
[375981107,1753807858220,-151.0,0.00021571,2]
[375981109,1753807858230,-151.0,0.00021594,2]
[375981111,1753807858239,-3000.0,0.00021611,3]
[375981113,1753807858251,-2231.69749388,0.00021659,5]
[375981115,1753807858260,-479.0,0.0002168,2]
[375981117,1753807858270,-500.0,0.00021733,2]
[375981119,1753807858278,-969.00258922,0.00021739,2]
[375981121,1753807858288,-601.53556887,0.00021747,2]
[375981123,1753807858301,-2231.69749388,0.00021797,6]
[375981125,1753807858310,-460.0,0.00021797,2]
[375981127,1753807858319,-460.0,0.00021797,2]
[375981129,1753807858328,-491.69,0.00021797,2]
[375981131,1753807858339,-811.66,0.00021797,2]
[375981133,1753807858348,-3307.02,0.00021797,2]
[375981135,1753807858358,-460.0,0.00021797,2]
[375981137,1753807858368,-548.32,0.00021797,2]
[375981139,1753807858377,-544.18,0.00021797,2]
[375981141,1753807858388,-579.34,0.00021797,2]
[375981143,1753807858397,-507.41,0.00021797,2]
[375981145,1753807858406,-1150.02,0.00021797,2]
[375981147,1753807858415,-2693.06,0.00021797,2]
[375981148,1753807858424,-473.88,0.00021797,2]
[375981150,1753807858434,-1832.82,0.00021797,2]
[375981152,1753807858444,-460.0,0.00021797,2]
[375981155,1753807858454,-608.37,0.00021797,2]
[375981156,1753807858464,-460.0,0.00021797,2]
[375981158,1753807858474,-460.0,0.00021797,2]
[375981160,1753807858483,-460.0,0.00021797,2]
[375981162,1753807858492,-2060.05,0.00021797,2]
[375981164,1753807858503,-566.85,0.00021797,2]
[375981166,1753807858513,-475.64,0.00021797,2]
[375981168,1753807858522,-801.11,0.00021797,2]
[375981170,1753807858532,-460.0,0.00021798,2]
[375981172,1753807858541,-756.37,0.00021798,2]
[375981174,1753807858551,-516.73,0.00021798,2]
[375981176,1753807858561,-585.51,0.00021798,2]
[375981178,1753807858571,-460.0,0.00021798,2]
[375981180,1753807858580,-595.87,0.00021798,2]
[375981182,1753807858590,-1867.35,0.00021798,2]
[375981184,1753807858599,-460.0,0.00021798,2]
[375981186,1753807858609,-667.75,0.00021799,2]
[375981188,1753807858619,-595.43,0.00021799,2]
[375981190,1753807858628,-460.0,0.00021799,2]
[375981192,1753807858637,-460.0,0.00021799,2]
[375981194,1753807858647,-739.29,0.00021799,2]
[375981196,1753807858657,-620.28,0.00021799,2]
[375981198,1753807858667,-460.0,0.00021799,2]
[375981200,1753807858676,-684.72,0.00021799,2]
[375981202,1753807858685,-460.0,0.00021799,2]
[375981204,1753807858695,-928.03,0.00021799,2]
[375981206,1753807858704,-635.4,0.00021799,2]
[375981208,1753807858714,-460.0,0.00021799,2]
[375981210,1753807858723,-2645.16,0.00021799,2]
[375981212,1753807858732,-1559.34,0.00021799,2]
[375981214,1753807858742,-2633.74,0.000218,2]
[375981216,1753807858752,-460.0,0.000218,2]
[375981218,1753807858761,-2035.27,0.000218,2]
[375981219,1753807858770,-696.22,0.000218,2]
[375981221,1753807858780,-460.0,0.000218,2]
[375981223,1753807858790,-460.0,0.000218,2]
[375981225,1753807858800,-567.02734988,0.000218,2]
[375981227,1753807858809,-1910.62,0.00021809,2]
[375981229,1753807858818,-460.0,0.0002181,2]
[375981231,1753807858828,-1479.1,0.0002181,2]
[375981233,1753807858837,-1785.12,0.00021811,2]
[375981235,1753807858846,-2987.64,0.00021811,2]
[375981237,1753807858856,-2558.99,0.00021811,2]
[375981239,1753807858865,-585.67,0.00021811,2]
[375981241,1753807858874,-334.85873184,0.00021811,2]
[375981243,1753807858883,-2659.24,0.00021811,2]
[375981245,1753807858892,-4745.46963739,0.00021817,2]
[375981247,1753807858901,-151.0,0.00021845,2]
[375981249,1753807858910,-190.029278,0.00021845,2]
[375981251,1753807858920,-190.029278,0.00021845,2]
[375981253,1753807858929,-151.0,0.00021845,2]
[375981255,1753807858938,-800.0,0.0002186,2]
[375981257,1753807858947,-224.51,0.0002187,2]
[375981259,1753807858957,-151.0,0.00021871,2]
[375981261,1753807858966,-151.0,0.00021871,2]
[375981263,1753807858976,-274.014233,0.00021871,2]
[375981265,1753807858985,-274.014233,0.00021871,2]
[375981267,1753807858995,-151.0,0.00021875,2]
[375981269,1753807859005,-151.0,0.0002188,2]
[375981271,1753807859015,-2245.5,0.00021884,4]
[375981273,1753807859024,-500.0,0.00021917,2]
[375981275,1753807859033,-500.0,0.00021917,2]
[375981277,1753807859042,-500.0,0.00021917,2]
[375981279,1753807859052,-500.0,0.00021917,2]
[375981281,1753807859061,-500.0,0.00021917,2]
[375981283,1753807859070,-500.0,0.00021917,2]
[375981285,1753807859079,-500.0,0.00021917,2]
[375981287,1753807859088,-500.0,0.00021917,2]
[375981289,1753807859097,-500.0,0.00021917,2]
[375981291,1753807859106,-500.0,0.00021917,2]
[375981293,1753807859115,-500.0,0.00021917,2]
[375981295,1753807859124,-500.0,0.00021917,2]
[375981296,1753807859134,-598.3,0.00021917,2]
[375981298,1753807859143,-598.3,0.00021917,2]
[375981300,1753807859152,-598.3,0.00021917,2]
[375981302,1753807859161,-598.3,0.00021917,2]
[375981304,1753807859170,-598.3,0.00021917,2]
[375981305,1753807859179,-598.3,0.00021917,2]
[375981306,1753807859188,-598.3,0.00021917,2]
[375981307,1753807859198,-598.3,0.00021917,2]
[375981308,1753807859207,-598.3,0.00021917,2]
[375981309,1753807859216,-598.3,0.00021917,2]
[375981310,1753807859225,-598.3,0.00021917,2]
[375981311,1753807859235,-598.3,0.00021917,2]
[375981312,1753807859244,-334.564746,0.00021918,2]
[375981313,1753807859254,-334.564746,0.00021918,2]
[375981314,1753807859263,-334.564746,0.00021918,2]
[375981315,1753807859273,-334.564746,0.00021918,2]
[375981316,1753807859282,-334.564746,0.00021918,2]
[375981317,1753807859291,-334.564746,0.00021918,2]
[375981318,1753807859305,-334.564746,0.00021918,2]
[375981319,1753807859315,-334.564746,0.00021918,2]
[375981320,1753807859323,-334.564746,0.00021918,2]
[375981321,1753807859332,-334.564746,0.00021918,2]
[375981322,1753807859342,-334.564746,0.00021918,2]
[375981323,1753807859351,-334.564746,0.00021918,2]
[375981324,1753807859360,-334.564746,0.00021918,2]
[375981325,1753807859369,-334.564746,0.00021918,2]
[375981326,1753807859381,-334.564746,0.00021918,2]
[375981327,1753807859390,-334.564746,0.00021918,2]
[375981328,1753807859400,-334.564746,0.00021918,2]
[375981329,1753807859409,-334.564746,0.00021918,2]
[375981330,1753807859418,-334.564746,0.00021918,2]
[375981331,1753807859427,-334.56475,0.00021918,2]
[375981332,1753807859435,-152.0,0.00021918,2]
[375981333,1753807859445,-152.0,0.00021918,2]
[375981334,1753807859454,-150.0,0.00021918,2]
[375981335,1753807859463,-152.0,0.00021918,2]
[375981336,1753807859472,-152.0,0.00021918,2]
[375981337,1753807859481,-152.0,0.00021918,2]
[375981338,1753807859491,-152.0,0.00021918,2]
[375981339,1753807859500,-152.0,0.00021918,2]
[375981340,1753807859509,-152.0,0.00021918,2]
[375981341,1753807859518,-152.0,0.00021918,2]
[375981342,1753807859527,-152.0,0.00021918,2]
[375981343,1753807859536,-152.0,0.00021918,2]
[375981344,1753807859546,-258.13177738,0.00021918,2]
[375981345,1753807859556,-152.0,0.00021918,2]
[375981346,1753807859564,-152.0,0.00021918,2]
[375981347,1753807859574,-152.0,0.00021918,2]
[375981348,1753807859583,-152.0,0.00021918,2]
[375981349,1753807859592,-152.0,0.00021918,2]
[375981350,1753807859601,-152.0,0.00021918,2]
[375981351,1753807859610,-152.0,0.00021918,2]
[375981352,1753807859619,-181.96045009,0.00021918,2]
[375981353,1753807859629,-200.0,0.00021918,2]
[375981354,1753807859638,-150.0,0.00021918,2]
[375981356,1753807859647,-150.0,0.00021918,2]
[375981357,1753807859657,-500.0,0.00021918,2]
[375981358,1753807859666,-500.0,0.00021918,2]
[375981359,1753807859675,-488.46604209,0.00021918,2]
[375981360,1753807859684,-175.75752265,0.0002192,4]
[375981362,1753807859694,-175.75752265,0.0002192,4]
[375981363,1753807859703,-175.75752265,0.0002192,4]
[375981364,1753807859713,-175.75,0.0002192,4]
[375981365,1753807859723,-164.04035447,0.0002192,4]
[375981366,1753807859733,-164.04035447,0.0002192,4]
[375981367,1753807859743,-164.04035447,0.0002192,4]
[375981368,1753807859756,-164.04035447,0.0002192,4]
[375981369,1753807859766,-164.04035447,0.0002192,4]
[375981370,1753807859776,-164.04035447,0.0002192,4]
[375981371,1753807859785,-164.04035447,0.0002192,4]
[375981372,1753807859796,-164.04035447,0.0002192,4]
[375981373,1753807859806,-164.04035447,0.0002192,4]
[375981374,1753807859815,-164.04,0.0002192,4]
[375981375,1753807859825,-227.82,0.0002192,4]
[375981376,1753807859835,-177.195184,0.0002192,4]
[375981377,1753807859844,-177.195184,0.0002192,4]
[375981378,1753807859854,-2231.69749388,0.00021934,6]
[375981379,1753807859864,-1713.81,0.00022,7]
[375981380,1753807859873,-2277.15370638,0.00022,3]
[375981381,1753807859883,-4567.31710124,0.00022,5]
[375981382,1753807859891,-4034.25,0.00022,7]
[375981383,1753807859901,-153.0,0.00022,2]
[375981384,1753807859910,-34668.14,0.00022,2]
[375981385,1753807859919,-10655.23,0.00022,7]
[375981386,1753807859929,-6404.31,0.00022,2]
[375981387,1753807859938,-236.0,0.00022,2]
[375981388,1753807859948,-190.029278,0.00022004,7]
[375981389,1753807859959,-190.029272,0.00022004,7]
[375981390,1753807859969,-460.0,0.00022071,2]
[375981391,1753807859979,-460.0,0.00022071,2]
[375981392,1753807859988,-491.69,0.00022071,2]
[375981393,1753807859998,-811.66,0.00022071,2]
[375981394,1753807860009,-3307.02,0.00022071,2]
[375981395,1753807860019,-460.0,0.00022071,2]
[375981396,1753807860029,-548.32,0.00022071,2]
[375981397,1753807860039,-544.18,0.00022071,2]
[375981398,1753807860048,-579.34,0.00022071,2]
[375981399,1753807860059,-507.41,0.00022071,2]
[375981400,1753807860068,-1150.02,0.00022071,2]
[375981401,1753807860078,-2693.06,0.00022071,2]
[375981402,1753807860088,-473.88,0.00022071,2]
[375981403,1753807860097,-1832.82,0.00022071,2]
[375981404,1753807860107,-460.0,0.00022071,2]
[375981405,1753807860116,-608.37,0.00022071,2]
[375981406,1753807860125,-460.0,0.00022071,2]
[375981407,1753807860135,-460.0,0.00022071,2]
[375981408,1753807860145,-460.0,0.00022071,2]
[375981409,1753807860155,-2060.05,0.00022071,2]
[375981410,1753807860165,-566.85,0.00022071,2]
[375981411,1753807860180,-475.64,0.00022071,2]
[375981412,1753807860194,-801.11,0.00022071,2]
[375981413,1753807860204,-500.0,0.00022072,2]
[375981414,1753807860214,-426.8472661,0.00022072,2]
[375981415,1753807860224,-756.37,0.00022072,2]
[375981416,1753807860233,-516.73,0.00022072,2]
[375981417,1753807860243,-585.51,0.00022072,2]
[375981419,1753807860255,-460.0,0.00022072,2]
[375981421,1753807860265,-595.87,0.00022072,2]
[375981423,1753807860275,-1867.35,0.00022072,2]
[375981425,1753807860284,-460.0,0.00022072,2]
[375981427,1753807860296,-2231.69749388,0.00022072,6]
[375981428,1753807860308,-2633.74,0.00022073,2]
[375981430,1753807860319,-460.0,0.00022073,2]
[375981432,1753807860329,-2035.27,0.00022073,2]
[375981434,1753807860339,-696.22,0.00022073,2]
[375981436,1753807860349,-460.0,0.00022073,2]
[375981438,1753807860359,-667.75,0.00022073,2]
[375981440,1753807860369,-595.43,0.00022073,2]
[375981442,1753807860380,-460.0,0.00022073,2]
[375981443,1753807860391,-460.0,0.00022073,2]
[375981444,1753807860401,-739.29,0.00022073,2]
[375981459,1753807860574,-620.28,0.00022073,2]
[375981460,1753807860584,-460.0,0.00022073,2]
[375981462,1753807860594,-598.3,0.00022073,2]
[375981464,1753807860603,-460.0,0.00022073,2]
[375981465,1753807860613,-684.72,0.00022073,2]
[375981466,1753807860622,-460.0,0.00022073,2]
[375981467,1753807860632,-928.03,0.00022073,2]
[375981468,1753807860642,-635.4,0.00022073,2]
[375981469,1753807860652,-460.0,0.00022073,2]
[375981470,1753807860662,-2645.16,0.00022073,2]
[375981471,1753807860672,-1559.34,0.00022073,2]
[375981472,1753807860681,-500.0,0.00022076,2]
[375981473,1753807860691,-1910.62,0.00022083,2]
[375981474,1753807860701,-460.0,0.00022084,2]
[375981475,1753807860713,-1479.1,0.00022084,2]
[375981476,1753807860722,-1785.12,0.00022085,2]
[375981477,1753807860732,-2987.64,0.00022085,2]
[375981478,1753807860741,-2558.99,0.00022085,2]
[375981479,1753807860753,-585.67,0.00022085,2]
[375981480,1753807860762,-2659.24,0.00022085,2]
[375981481,1753807860772,-560.0,0.00022118,2]
[375981482,1753807860783,-151.0,0.00022149,7]
[375981483,1753807860793,-179.78425889,0.00022153,2]
[375981484,1753807860803,-800.0,0.00022154,2]
[375981485,1753807860813,-323.57395263,0.0002219,2]
[375981486,1753807860822,-236.0,0.00022192,7]
[375981487,1753807860832,-800.0,0.00022194,2]
[375981488,1753807860842,-2231.69749388,0.0002221,6]
[375981489,1753807860851,-800.0,0.00022243,2]
[375981490,1753807860860,-4745.46963731,0.00022279,2]
[375981491,1753807860870,-643.0,0.000223,2]
[375981492,1753807860880,-587.0,0.00022325,2]
[375981493,1753807860890,-800.0,0.00022337,2]
[375981494,1753807860899,-460.0,0.00022345,2]
[375981495,1753807860909,-460.0,0.00022345,2]
[375981496,1753807860918,-491.69,0.00022345,2]
[375981497,1753807860928,-811.66,0.00022345,2]
[375981498,1753807860939,-3307.02,0.00022345,2]
[375981499,1753807860948,-460.0,0.00022345,2]
[375981500,1753807860958,-548.32,0.00022345,2]
[375981501,1753807860967,-544.18,0.00022345,2]
[375981502,1753807860977,-579.34,0.00022345,2]
[375981503,1753807860986,-507.41,0.00022345,2]
[375981504,1753807860996,-1150.02,0.00022345,2]
[375981505,1753807861008,-2693.06,0.00022345,2]
[375981506,1753807861017,-473.88,0.00022345,2]
[375981507,1753807861027,-1832.82,0.00022345,2]
[375981508,1753807861036,-460.0,0.00022345,2]
[375981509,1753807861046,-608.37,0.00022345,2]
[375981510,1753807861055,-460.0,0.00022345,2]
[375981511,1753807861064,-460.0,0.00022345,2]
[375981512,1753807861074,-460.0,0.00022345,2]
[375981513,1753807861084,-2060.05,0.00022345,2]
[375981514,1753807861093,-566.85,0.00022345,2]
[375981515,1753807861103,-475.64,0.00022345,2]
[375981516,1753807861112,-801.11,0.00022345,2]
[375981517,1753807861122,-500.0,0.00022346,2]
[375981518,1753807861131,-756.37,0.00022346,2]
[375981519,1753807861144,-516.73,0.00022346,2]
[375981520,1753807861153,-585.51,0.00022346,2]
[375981521,1753807861164,-460.0,0.00022346,2]
[375981522,1753807861174,-595.87,0.00022346,2]
[375981523,1753807861183,-1867.35,0.00022346,2]
[375981524,1753807861192,-460.0,0.00022346,2]
[375981525,1753807861202,-2633.74,0.00022347,2]
[375981526,1753807861216,-460.0,0.00022347,2]
[375981527,1753807861226,-2035.27,0.00022347,2]
[375981528,1753807861235,-696.22,0.00022347,2]
[375981529,1753807861244,-460.0,0.00022347,2]
[375981530,1753807861256,-667.75,0.00022347,2]
[375981531,1753807861265,-595.43,0.00022347,2]
[375981532,1753807861275,-164.86818377,0.00022347,2]
[375981533,1753807861285,-460.0,0.00022347,2]
[375981534,1753807861294,-739.29,0.00022347,2]
[375981535,1753807861307,-620.28,0.00022347,2]
[375981536,1753807861316,-460.0,0.00022347,2]
[375981537,1753807861327,-598.3,0.00022347,2]
[375981538,1753807861336,-460.0,0.00022347,2]
[375981539,1753807861346,-684.72,0.00022347,2]
[375981540,1753807861355,-460.0,0.00022347,2]
[375981541,1753807861365,-928.03,0.00022347,2]
[375981542,1753807861376,-635.4,0.00022347,2]
[375981543,1753807861385,-277.4156061,0.00022347,2]
[375981544,1753807861395,-2645.16,0.00022347,2]
[375981545,1753807861405,-1559.34,0.00022347,2]
[375981546,1753807861415,-2231.69749388,0.00022348,7]
[375981547,1753807861424,-1910.62,0.00022357,2]
[375981548,1753807861434,-460.0,0.00022358,2]
[375981549,1753807861443,-1479.1,0.00022358,2]
[375981550,1753807861454,-1785.12,0.00022359,2]
[375981551,1753807861464,-2987.64,0.00022359,2]
[375981552,1753807861473,-2558.99,0.00022359,2]
[375981553,1753807861483,-585.67,0.00022359,2]
[375981554,1753807861492,-2659.24,0.00022359,2]
[375981555,1753807861503,-177.19,0.0002237,4]
[375981556,1753807861513,-1957.897,0.0002238,2]
[375981557,1753807861522,-253.68147688,0.00022384,2]
[375981558,1753807861532,-2245.5,0.00022384,5]
[375981559,1753807861541,-1753.5875654,0.000224,3]
[375981560,1753807861551,-30550.02272437,0.00022442,2]
[375981561,1753807861561,-300.0,0.00022466,2]
[375981562,1753807861570,-232.05767895,0.00022466,2]
[375981563,1753807861580,-131477.45660102,0.0002247,2]
[375981564,1753807861936,-460.0,0.00019607,2]
[375981565,1753807861946,-179764.90173915,0.0002247,2]
[375981566,1753807862209,-460.0,0.00018783,2]
[375981567,1753807862219,-460.0,0.00018785,2]
[375981568,1753807862230,-460.0,0.00019059,2]
[375981569,1753807862240,-460.0,0.00019881,2]
[375981570,1753807862253,-460.0,0.00020155,2]
[375981571,1753807862267,-460.0,0.00020429,2]
[375981572,1753807862277,-460.0,0.00020703,2]
[375981573,1753807862286,-529.8,0.0002247,2]
[375981574,1753807862299,-58800.00000001,0.0002247,2]
[375981575,1753807863553,-352.09892708,0.00018783,2]
[375981576,1753807863665,-107.90107292,0.00018783,2]
[375981577,1753807863675,-460.0,0.00018783,2]
[375981578,1753807863686,-460.0,0.00018785,2]
[375981579,1753807863696,-460.0,0.00019057,2]